bitfinex-derivatives/quotes_BNBF0:USTF0_20250309
["timestamp","ask_amount","ask_price","bid_price","bid_amount"]
[1741487832593,0.31188763,589.98,588.79,4.63367968]
[1741487834499,0.31188763,589.97,588.79,4.63367968]
[1741487834703,0.31188763,589.96,588.79,4.63367968]
[1741487834903,0.31188763,590.03,588.79,4.63367968]
[1741487835099,1.2617338,590.04,588.79,4.63367968]
[1741487835302,0.31186004,590.03,588.79,4.63367968]
[1741487835501,0.6071657,590.02,588.79,4.63367968]
[1741487835698,0.31186004,590.01,588.79,4.63367968]
[1741487836204,0.29530566,590.02,588.79,4.63367968]
[1741487836205,0.31186004,590.0,588.79,4.63367968]
[1741487836400,1.2617338,589.84,588.79,4.63367968]
[1741487836606,0.31186004,589.83,588.79,4.63367968]
[1741487837701,0.29533573,589.82,588.79,4.63367968]
[1741487837903,0.31186004,589.81,588.79,4.63367968]
[1741487838207,0.29533573,589.82,588.79,4.63367968]
[1741487838407,1.2617338,589.8,588.79,4.63367968]
[1741487838600,0.31188936,589.79,588.79,4.63367968]
[1741487841407,0.29534826,589.78,588.79,4.63367968]
[1741487841603,0.31188936,589.77,588.79,4.63367968]
[1741487843406,0.31188936,589.81,588.79,4.63367968]
[1741487844403,0.29534576,589.8,588.79,4.63367968]
[1741487844810,0.31187248,589.79,588.79,4.63367968]
[1741487846411,0.31187248,589.78,588.79,4.63367968]
[1741487846611,1.2617338,589.96,588.79,4.63367968]
[1741487846912,0.31186292,589.95,588.79,4.63367968]
[1741487847414,0.29531067,589.94,588.79,4.63367968]
[1741487847612,0.31186292,589.93,588.79,4.63367968]
[1741487849609,0.31186292,589.92,588.79,4.63367968]
[1741487849815,0.31186292,589.95,588.79,4.63367968]
[1741487850416,0.29531067,589.94,588.79,4.63367968]
[1741487850612,0.31186292,589.93,588.79,4.63367968]
[1741487852517,0.31186292,589.94,588.79,4.63367968]
[1741487853422,0.29531192,589.93,588.79,4.63367968]
[1741487853816,0.31186292,589.92,588.79,4.63367968]
[1741487855418,0.31186292,589.91,588.79,4.63367968]
[1741487855618,0.31186292,589.97,588.79,4.63367968]
[1741487855817,0.31186292,589.96,588.79,4.63367968]
[1741487856017,1.2617338,589.82,588.79,4.63367968]
[1741487856223,0.31186292,589.81,588.79,4.63367968]
[1741487859032,0.31186292,589.82,588.79,4.63367968]
[1741487859231,0.31188477,589.81,588.79,4.63367968]
[1741487859431,0.31188477,589.8,588.79,4.63367968]
[1741487861431,0.31188477,589.79,588.79,4.63367968]
[1741487861637,0.31188477,589.87,588.79,4.63367968]
[1741487861833,0.29534826,589.79,588.79,4.63367968]
[1741487862038,0.31188477,589.78,588.79,4.63367968]
[1741487862339,0.31188477,589.77,588.79,4.63367968]
[1741487862536,0.31188477,589.76,588.79,4.63367968]
[1741487862737,0.31188477,589.87,588.79,4.63367968]
[1741487862938,0.29534826,589.75,588.79,4.63367968]
[1741487863135,0.31189242,589.86,588.79,4.63367968]
[1741487863339,0.31189242,589.87,588.79,4.63367968]
[1741487863539,0.29535077,589.74,588.79,4.63367968]
[1741487863738,1.2617338,589.88,588.79,4.63367968]
[1741487863943,0.31189536,589.87,588.79,4.63367968]
[1741487864735,0.29534826,589.86,588.79,4.63367968]
[1741487864935,0.31189536,589.85,588.79,4.63367968]
[1741487867642,0.60724613,589.84,588.79,4.63367968]
[1741487867842,0.31189536,589.83,588.79,4.63367968]
[1741487870440,1.2617338,589.73,588.79,4.63367968]
[1741487870639,0.31189536,589.72,588.79,4.63367968]
[1741487871840,1.2617338,589.73,588.79,4.63367968]
[1741487872039,0.31186192,589.72,588.79,4.63367968]
[1741487872639,0.31186192,589.71,588.79,4.63367968]
[1741487872846,0.31186192,589.79,588.79,4.63367968]
[1741487873039,0.31186192,589.78,588.79,4.63367968]
[1741487873238,0.31186192,589.79,588.79,4.63367968]
[1741487874446,0.29534576,589.78,588.79,4.63367968]
[1741487874644,0.31186192,589.77,588.79,4.63367968]
[1741487874846,1.2617338,589.76,588.79,4.63367968]
[1741487875047,0.31186192,589.75,588.79,4.63367968]
[1741487877445,0.31186192,589.74,588.79,4.63367968]
[1741487877645,0.60721269,589.74,588.79,4.63367968]
[1741487877843,0.31186192,589.73,588.79,4.63367968]
[1741487879350,1.2617338,589.77,588.79,4.63367968]
[1741487879549,0.29535328,589.72,588.79,4.63367968]
[1741487879749,0.31186434,589.71,588.79,4.63367968]
[1741487880949,0.29535328,589.72,588.79,4.63367968]
[1741487881150,0.31188482,589.71,588.79,4.63367968]
[1741487882551,1.2617338,589.79,588.79,4.63367968]
[1741487882852,1.2617338,589.76,588.79,4.63367968]
[1741487883044,0.3118873,589.75,588.79,4.63367968]
[1741487883448,0.29535077,589.74,588.79,4.63367968]
[1741487883645,0.3118873,589.73,588.79,4.63367968]
[1741487885452,1.2617338,589.71,588.79,4.63367968]
[1741487885648,0.3118873,589.7,588.79,4.63367968]
[1741487886246,0.31190311,589.69,588.79,4.63367968]
[1741487886449,0.31190311,589.68,588.79,4.63367968]
[1741487888550,0.31190311,589.69,588.79,4.63367968]
[1741487888850,0.31190311,589.68,588.79,4.63367968]
[1741487889055,0.31190311,589.69,588.79,4.63367968]
[1741487889256,0.31190311,589.68,588.79,4.63367968]
[1741487889456,0.29537083,589.67,588.79,4.63367968]
[1741487891356,1.2617338,589.71,588.79,4.63367968]
[1741487891557,0.3119519,589.7,588.79,4.63367968]
[1741487892453,0.29539715,589.69,588.79,4.63367968]
[1741487892758,0.60734905,589.69,588.79,4.63367968]
[1741487892958,0.3119519,589.68,588.79,4.63367968]
[1741487893553,0.29539715,589.69,588.79,4.63367968]
[1741487894360,1.2617338,589.87,588.79,4.63367968]
[1741487894560,0.31195413,589.86,588.79,4.63367968]
[1741487895462,0.29537709,589.85,588.79,4.63367968]
[1741487895656,0.31195413,589.84,588.79,4.63367968]
[1741487897559,0.31195413,589.96,588.79,4.63367968]
[1741487897763,0.31195413,589.95,588.79,4.63367968]
[1741487897959,1.2617338,589.97,588.79,4.63367968]
[1741487898264,0.31198336,589.96,588.79,4.63367968]
[1741487898465,0.60736045,589.96,588.79,4.63367968]
[1741487900365,0.31198336,589.96,588.79,4.63367968]
[1741487900866,0.29537835,589.95,588.79,4.63367968]
[1741487901467,0.31198336,589.94,588.79,4.63367968]
[1741487903365,0.33902327,589.93,588.79,4.63367968]
[1741487903568,0.31198336,589.92,588.79,4.63367968]
[1741487903769,0.65101238,589.92,588.79,4.63367968]
[1741487903969,0.31198336,589.91,588.79,4.63367968]
[1741487906670,0.33904051,589.9,588.79,4.63367968]
[1741487906870,0.31198336,589.89,588.79,4.63367968]
[1741487907170,0.33905201,589.88,588.79,4.63367968]
[1741487907365,0.31198336,589.87,588.79,4.63367968]
[1741487907671,0.60740057,589.87,588.79,4.63367968]
[1741487907865,0.31198336,589.86,588.79,4.63367968]
[1741487908269,0.33906925,589.85,588.79,4.63367968]
[1741487908466,0.31198336,589.84,588.79,4.63367968]
[1741487909875,0.33908075,589.83,588.79,4.63367968]
[1741487910075,0.31198336,589.82,588.79,4.63367968]
[1741487910374,0.33909225,589.81,588.79,4.63367968]
[1741487910577,0.31198336,589.8,588.79,4.63367968]
[1741487913478,0.29543728,589.79,588.79,4.63367968]
[1741487913676,0.31198336,589.78,588.79,4.63367968]
[1741487915577,0.31198336,589.77,588.79,4.63367968]
[1741487915777,0.31198336,589.79,588.79,4.63367968]
[1741487915976,0.31198336,589.78,588.79,4.63367968]
[1741487916175,1.2617338,589.8,588.79,4.63367968]
[1741487916176,0.31198336,589.79,588.79,4.63367968]
[1741487916372,0.29544104,589.77,588.79,4.63367968]
[1741487916576,0.31207071,589.76,588.79,4.63367968]
[1741487917979,0.31207071,589.76,588.79,4.294]
[1741487918178,0.6511917,589.76,588.79,4.294]
[1741487918378,0.31207071,589.75,588.79,4.294]
[1741487919481,0.29545609,589.74,588.79,4.294]
[1741487919682,0.31207071,589.73,588.79,4.294]
[1741487921478,0.31207071,589.75,588.79,4.294]
[1741487921879,0.31208917,589.74,588.79,4.294]
[1741487922079,0.31208917,589.75,588.79,4.294]
[1741487922583,0.29545609,589.73,588.79,4.294]
[1741487922884,0.31208917,589.72,588.79,4.294]
[1741487923877,0.31207453,589.71,588.79,4.294]
[1741487924083,0.31207453,589.72,588.79,4.294]
[1741487924279,0.31207453,589.71,588.79,4.294]
[1741487924479,0.31207453,589.72,588.79,4.294]
[1741487924683,0.31207453,589.71,588.79,4.294]
[1741487924881,0.31207453,589.7,588.79,4.294]
[1741487925077,0.31207453,589.72,588.79,4.294]
[1741487925282,0.31207453,589.69,588.79,4.294]
[1741487925484,0.31207453,589.68,588.79,4.294]
[1741487925679,0.31207453,589.67,588.79,4.294]
[1741487925880,0.31207453,589.66,588.79,4.294]
[1741487926082,0.31207453,589.65,588.79,4.294]
[1741487926283,0.31207453,589.64,588.79,4.294]
[1741487926483,0.31207453,589.63,588.79,4.294]
[1741487926678,0.31207453,589.62,588.79,4.294]
[1741487926882,0.31207453,589.61,588.79,4.294]
[1741487927083,0.31207453,589.6,588.79,4.294]
[1741487927281,1.2617338,589.72,588.79,4.294]
[1741487927479,0.31207037,589.71,588.79,4.294]
[1741487927783,0.31207037,589.7,588.79,4.294]
[1741487927984,0.31207037,589.69,588.79,4.294]
[1741487928179,0.31207037,589.68,588.79,4.294]
[1741487928382,0.31207037,589.67,588.79,4.294]
[1741487928583,0.31207037,589.66,588.79,4.294]
[1741487928783,0.31207037,589.65,588.79,4.294]
[1741487928984,0.31207037,589.64,588.79,4.294]
[1741487929383,0.31207037,589.63,588.79,4.294]
[1741487929684,0.31207037,589.62,588.79,4.294]
[1741487929981,1.2617338,589.54,588.79,4.294]
[1741487930184,0.31207037,589.53,588.79,4.294]
[1741487931687,0.29548619,589.52,588.79,4.294]
[1741487931885,0.31207037,589.51,588.79,4.294]
[1741487933689,0.31207623,589.5,588.79,4.294]
[1741487933992,0.31207623,589.49,588.79,4.294]
[1741487934184,0.31207623,589.51,588.79,4.294]
[1741487934385,0.31207623,589.5,588.79,4.294]
[1741487934584,0.2954887,589.48,588.79,4.294]
[1741487934783,0.31207623,589.47,588.79,4.294]
[1741487937195,0.2954887,589.48,588.79,4.294]
[1741487937393,0.31207257,589.47,588.79,4.294]
[1741487939094,0.31207569,589.46,588.79,4.294]
[1741487939400,0.31207569,589.45,588.79,4.294]
[1741487939601,0.31207569,589.49,588.79,4.294]
[1741487939801,1.2617338,589.46,588.79,4.294]
[1741487940000,0.31207569,589.45,588.79,4.294]
[1741487940501,0.29549623,589.44,588.79,4.294]
[1741487940701,0.31207569,589.43,588.79,4.294]
[1741487941402,0.29549623,589.44,588.79,4.294]
[1741487941601,1.57381662,589.43,588.79,4.294]
[1741487941901,0.31208282,589.42,588.79,4.294]
[1741487943302,0.31209005,589.41,588.79,4.294]
[1741487943495,0.29549999,589.41,588.79,4.294]
[1741487943701,0.31209005,589.4,588.79,4.294]
[1741487944297,1.57382385,589.4,588.79,4.294]
[1741487944603,0.31209005,589.39,588.79,4.294]
[1741487945203,0.31207964,589.38,588.79,4.294]
[1741487945404,1.2617338,589.4,588.79,4.294]
[1741487945607,0.31207902,589.39,588.79,4.294]
[1741487946302,1.2617338,589.36,588.79,4.294]
[1741487948609,1.2617338,589.5,588.79,4.294]
[1741487948903,0.31208961,589.49,588.79,4.294]
[1741487949403,0.29549874,589.48,588.79,4.294]
[1741487950008,0.31211885,589.47,588.79,4.294]
[1741487950701,0.31219824,589.46,588.79,4.294]
[1741487950907,0.31219824,589.47,588.79,4.294]
[1741487951107,0.31219824,589.46,588.79,4.294]
[1741487951308,0.31219824,589.47,588.79,4.294]
[1741487951606,0.31219824,589.46,588.79,4.294]
[1741487951908,0.31219824,589.45,588.79,4.294]
[1741487954503,0.29556399,589.44,588.79,4.294]
[1741487954702,0.31219824,589.43,588.79,4.294]
[1741487959711,0.31222677,589.42,588.79,4.294]
[1741487959910,0.31222677,589.43,588.79,4.294]
[1741487960111,0.31222677,589.42,588.79,4.294]
[1741487960512,0.31222677,589.41,588.79,4.294]
[1741487960714,0.2955665,589.41,588.79,4.294]
[1741487960909,0.31222677,589.4,588.79,4.294]
[1741487961308,0.2955665,589.41,588.79,4.294]
[1741487961511,0.31222429,589.4,588.79,4.294]
[1741487963609,0.29557027,589.39,588.79,4.294]
[1741487963808,0.31222429,589.38,588.79,4.294]
[1741487965110,0.29557027,589.39,588.79,4.294]
[1741487965315,0.31222775,589.38,588.79,4.294]
[1741487967216,0.31225513,589.37,588.79,4.294]
[1741487967413,0.29557027,589.39,588.79,4.294]
[1741487967414,0.31225513,589.38,588.79,4.294]
[1741487967619,0.31225513,589.37,588.79,4.294]
[1741487967815,0.31225513,589.36,588.79,4.294]
[1741487968020,0.31225513,589.35,588.79,4.294]
[1741487968217,0.31225513,589.38,588.79,4.294]
[1741487968420,0.29557027,589.39,588.79,4.294]
[1741487968421,0.31225513,589.37,588.79,4.294]
[1741487968723,0.31225513,589.36,588.79,4.294]
[1741487968924,0.31225513,589.38,588.79,4.294]
[1741487969222,0.31225513,589.37,588.79,4.294]
[1741487969423,0.29557027,589.39,588.79,4.294]
[1741487969424,0.31225513,589.38,588.79,4.294]
[1741487969617,0.29558533,589.37,588.79,4.294]
[1741487970118,0.31225513,589.36,588.79,4.294]
[1741487970826,0.31225075,589.35,588.79,4.294]
[1741487971125,0.31225075,589.34,588.79,4.294]
[1741487971326,0.31225075,589.36,588.79,4.294]
[1741487972425,0.31225075,589.6,588.79,4.294]
[1741487972625,0.29558784,589.35,588.79,4.294]
[1741487972826,0.31225075,589.34,588.79,4.294]
[1741487973326,0.31225075,589.33,588.79,4.294]
[1741487973527,0.31225075,589.58,588.79,4.294]
[1741487973719,0.29556023,589.32,588.79,4.294]
[1741487973925,0.31225075,589.31,588.79,4.294]
[1741487974321,0.33923028,589.57,588.79,4.294]
[1741487974524,0.31224314,589.56,588.79,4.294]
[1741487974722,0.33924179,589.55,588.79,4.294]
[1741487974927,0.31224314,589.54,588.79,4.294]
[1741487975120,0.3392533,589.53,588.79,4.294]
[1741487975521,0.31224314,589.52,588.79,4.294]
[1741487975721,0.33926481,589.51,588.79,4.294]
[1741487975925,0.31224314,589.5,588.79,4.294]
[1741487976321,0.65151946,589.49,588.79,4.294]
[1741487976528,0.31224314,589.48,588.79,4.294]
[1741487976727,0.31224314,589.47,588.79,4.294]
[1741487977128,0.31224314,589.46,588.79,4.294]
[1741487977428,0.31224314,589.45,588.79,4.294]
[1741487977624,0.31224314,589.44,588.79,4.294]
[1741487977826,0.31224314,589.43,588.79,4.294]
[1741487978022,1.2617338,589.36,588.79,4.294]
[1741487978226,0.31224314,589.35,588.79,4.294]
[1741487978529,0.60783224,589.35,588.79,4.294]
[1741487978725,0.31224314,589.34,588.79,4.294]
[1741487979724,0.2955891,589.35,588.79,4.294]
[1741487980029,0.3122391,589.34,588.79,4.294]
[1741487981127,0.3122391,589.33,588.79,4.294]
[1741487981432,0.3122391,589.32,588.79,4.294]
[1741487981625,0.31224708,589.31,588.79,4.294]
[1741487982426,1.2617338,589.25,588.79,4.294]
[1741487982626,0.31224708,589.24,588.79,4.294]
[1741487982830,0.31224708,589.24,587.96,0.29560291]
[1741487983032,0.31224708,589.24,587.97,0.3401534]
[1741487983830,1.2617338,589.22,587.97,0.3401534]
[1741487984026,0.31224708,589.21,587.97,0.3401534]
[1741487984326,1.2617338,589.22,587.97,0.3401534]
[1741487985629,0.29565313,589.21,587.97,0.3401534]
[1741487986027,0.29565313,589.21,587.98,5.444]
[1741487986230,0.29565313,589.21,588.0,0.34013605]
[1741487987334,0.3393051,589.44,588.0,0.34013605]
[1741487987533,0.31213821,589.43,588.0,0.34013605]
[1741487987732,0.295623,589.2,588.0,0.34013605]
[1741487988034,0.3393051,589.44,588.0,0.34013605]
[1741487988436,0.31214486,589.43,588.0,0.34013605]
[1741487989137,0.295623,589.42,588.0,0.34013605]
[1741487989435,0.31214486,589.41,588.0,0.34013605]
[1741487990535,0.31214486,589.43,588.0,0.34013605]
[1741487990732,0.29562551,589.4,588.0,0.34013605]
[1741487991034,0.31214486,589.39,588.0,0.34013605]
[1741487992538,0.29562551,589.4,588.0,0.34013605]
[1741487992731,0.31214052,589.39,588.0,0.34013605]
[1741487993639,0.29562676,589.38,588.0,0.34013605]
[1741487994033,0.31214052,589.37,588.0,0.34013605]
[1741487996332,0.31214771,589.36,588.0,0.34013605]
[1741487996534,0.31214771,589.35,588.0,0.34013605]
[1741487998139,0.31214326,589.34,588.0,0.34013605]
[1741487998540,0.31214326,589.33,588.0,0.34013605]
[1741487998734,0.31214326,589.35,588.0,0.34013605]
[1741487998937,0.31213473,589.34,588.0,0.34013605]
[1741487999139,0.31213473,589.35,588.0,0.34013605]
[1741487999542,0.31213473,589.43,588.0,0.34013605]
[1741487999740,0.29563179,589.34,588.0,0.34013605]
[1741487999939,0.31213473,589.33,588.0,0.34013605]
[1741488000142,0.31214508,589.32,588.0,0.34013605]
[1741488000344,0.31214508,589.43,588.0,0.34013605]
[1741488000543,0.31214508,589.42,588.0,0.34013605]
[1741488000843,0.31214508,589.41,588.0,0.34013605]
[1741488001244,0.31214508,589.41,588.01,1.102]
[1741488001842,0.31214508,589.41,588.03,0.3401187]
[1741488002438,0.31214508,589.4,588.03,0.3401187]
[1741488002646,0.31214508,589.39,588.03,0.3401187]
[1741488003040,0.29562174,589.4,588.03,0.3401187]
[1741488003238,0.31214481,589.39,588.03,0.3401187]
[1741488005241,0.31214481,589.39,588.03,1.3981187]
[1741488005641,0.29562425,589.38,588.03,1.3981187]
[1741488006044,0.31214481,589.37,588.03,1.3981187]
[1741488008546,0.60776906,589.36,588.03,1.3981187]
[1741488008746,0.31214481,589.35,588.03,1.3981187]
[1741488009148,0.31214481,589.35,588.03,2.5201187]
[1741488011753,0.60777157,589.34,588.03,2.5201187]
[1741488011954,0.31214481,589.33,588.03,2.5201187]
[1741488012552,0.31213683,589.32,588.03,2.5201187]
[1741488012745,0.31213683,589.31,588.03,2.5201187]
[1741488012949,0.31213683,589.3,588.03,2.5201187]
[1741488013251,0.31213683,589.29,588.03,2.5201187]
[1741488013452,0.31213683,589.33,588.03,2.5201187]
[1741488013752,0.31213683,589.32,588.03,2.5201187]
[1741488013952,0.31213683,589.33,588.03,2.5201187]
[1741488014154,0.29562676,589.34,588.03,2.5201187]
[1741488014346,0.31213233,589.33,588.03,2.5201187]
[1741488014550,0.295623,589.33,588.03,2.5201187]
[1741488014852,0.31213233,589.32,588.03,2.5201187]
[1741488016254,0.31213463,589.31,588.03,2.5201187]
[1741488016450,0.31213463,589.32,588.03,2.5201187]
[1741488016650,0.31213463,589.31,588.03,2.5201187]
[1741488016848,0.31213463,589.32,588.03,2.5201187]
[1741488017050,0.295623,589.33,588.03,2.5201187]
[1741488017051,0.31213463,589.31,588.03,2.5201187]
[1741488017251,0.31213463,589.32,588.03,2.5201187]
[1741488017450,0.31213463,589.31,588.03,2.5201187]
[1741488017654,0.31213463,589.3,588.03,2.5201187]
[1741488017849,0.31213463,589.29,588.03,2.5201187]
[1741488018052,0.31213463,589.43,588.03,2.5201187]
[1741488018253,0.3393051,589.44,588.03,2.5201187]
[1741488018449,0.31213041,589.43,588.03,2.5201187]
[1741488018653,0.29561672,589.42,588.03,2.5201187]
[1741488018849,0.31213041,589.41,588.03,2.5201187]
[1741488020655,0.29561923,589.4,588.03,2.5201187]
[1741488020855,1.2617338,589.38,588.03,2.5201187]
[1741488021054,0.31213041,589.37,588.03,2.5201187]
[1741488022255,1.2617338,589.38,588.03,2.5201187]
[1741488022757,1.2617338,589.36,588.03,2.5201187]
[1741488023758,0.29563681,589.35,588.03,2.5201187]
[1741488024158,0.31214307,589.34,588.03,2.5201187]
[1741488025259,1.2617338,589.22,588.09,1.2675749]
[1741488025459,0.31214307,589.21,588.11,0.34007243]
[1741488027666,1.2617338,589.19,588.11,0.34007243]
[1741488027867,0.31214307,589.18,588.11,0.34007243]
[1741488029668,1.2617338,589.19,588.11,0.34007243]
[1741488030070,1.2617338,589.2,588.11,0.34007243]
[1741488030370,1.2617338,589.2,588.12,0.996]
[1741488030569,0.29564434,589.19,588.14,0.34005508]
[1741488031467,0.29564434,589.19,588.15,1.279]
[1741488031666,0.29564434,589.19,588.17,0.34003774]
[1741488032369,0.3393051,589.44,588.17,0.34003774]
[1741488032571,0.31214463,589.43,588.17,0.34003774]
[1741488033671,0.29560416,589.42,588.17,0.34003774]
[1741488033866,0.31213343,589.41,588.17,0.34003774]
[1741488038573,0.31213343,589.43,588.17,0.34003774]
[1741488039569,0.29560416,589.42,588.17,0.34003774]
[1741488039770,0.31213343,589.41,588.17,0.34003774]
[1741488040276,0.31213343,589.41,588.17,1.42003774]
[1741488040671,0.31213343,589.41,588.17,2.57603774]
[1741488041176,1.2617338,589.36,588.17,2.57603774]
[1741488041475,0.31213343,589.35,588.17,2.57603774]
[1741488041677,0.60774513,589.35,588.17,2.57603774]
[1741488041873,0.31213343,589.34,588.17,2.57603774]
[1741488042377,0.31213343,589.34,588.17,3.59103774]
[1741488044886,0.29561295,589.33,588.17,3.59103774]
[1741488045087,0.31213343,589.32,588.17,3.59103774]
[1741488045283,1.2617338,589.28,588.17,3.59103774]
[1741488045484,0.31213343,589.27,588.17,3.59103774]
[1741488046087,1.2617338,589.28,588.17,3.59103774]
[1741488046690,1.2617338,589.28,588.17,4.63703774]
[1741488048086,0.29561295,589.33,588.17,4.63703774]
[1741488048388,0.31205667,589.32,588.17,4.63703774]
[1741488050288,0.3120545,589.31,588.17,4.63703774]
[1741488050484,1.2617338,589.4,588.17,4.63703774]
[1741488050688,0.29557278,589.31,588.17,4.63703774]
[1741488050888,1.2617338,589.43,588.17,4.63703774]
[1741488052185,0.29556274,589.42,588.17,4.63703774]
[1741488053391,1.2617338,589.71,588.17,4.63703774]
[1741488053590,0.2955276,589.41,588.17,4.63703774]
[1741488054092,1.2617338,589.71,588.17,4.63703774]
[1741488054391,0.31204464,589.7,588.17,4.63703774]
[1741488054791,0.2955276,589.7,588.17,4.63703774]
[1741488054989,0.31204432,589.69,588.17,4.63703774]
[1741488056591,0.31204432,589.71,588.17,4.63703774]
[1741488056787,0.29552885,589.68,588.17,4.63703774]
[1741488056992,0.31204424,589.67,588.17,4.63703774]
[1741488058488,0.29552885,589.68,588.17,4.63703774]
[1741488058688,0.31206305,589.67,588.17,4.63703774]
[1741488059792,0.31206305,589.66,588.17,5.99703774]
[1741488059989,0.31206305,589.65,588.17,5.99703774]
[1741488060195,1.2617338,589.7,588.17,5.99703774]
[1741488060391,0.31204452,589.69,588.17,5.99703774]
[1741488060589,0.29553889,589.64,588.17,5.99703774]
[1741488060791,0.31204452,589.63,588.17,5.99703774]
[1741488062598,0.31204452,589.62,588.17,5.99703774]
[1741488062794,0.31204452,589.78,588.17,5.99703774]
[1741488062990,0.65115976,589.77,588.17,5.99703774]
[1741488063194,0.65116551,589.76,588.17,5.99703774]
[1741488063398,0.65117126,589.75,588.17,5.99703774]
[1741488063698,0.65117701,589.74,588.17,5.99703774]
[1741488063895,0.65118276,589.73,588.17,5.99703774]
[1741488064098,0.65118852,589.72,588.17,5.99703774]
[1741488064300,0.65119427,589.71,588.17,5.99703774]
[1741488064498,0.65120002,589.7,588.17,5.99703774]
[1741488064698,0.65120577,589.69,588.17,5.99703774]
[1741488064893,0.65121152,589.68,588.17,5.99703774]
[1741488065093,0.31204452,589.67,588.17,5.99703774]
[1741488065300,0.31204452,589.66,588.17,5.99703774]
[1741488065498,1.2617338,589.48,588.17,5.99703774]
[1741488065694,0.31204452,589.47,588.17,5.99703774]
[1741488066591,0.2955891,589.46,588.17,5.99703774]
[1741488066796,0.31204452,589.45,588.17,5.99703774]
[1741488066993,0.31209915,589.44,588.17,5.99703774]
[1741488067193,0.31209915,589.45,588.17,5.99703774]
[1741488068002,1.57383295,589.45,588.17,5.99703774]
[1741488068201,0.31209915,589.44,588.17,5.99703774]
[1741488069500,0.29559286,589.43,588.17,5.99703774]
[1741488069701,0.31209915,589.42,588.17,5.99703774]
[1741488070598,0.29559286,589.43,588.17,5.99703774]
[1741488070801,0.31209356,589.42,588.17,5.99703774]
[1741488071697,0.31209356,589.41,588.17,5.99703774]
[1741488071904,0.31209356,589.4,588.17,5.99703774]
[1741488072098,0.31209356,589.39,588.17,5.99703774]
[1741488072503,0.60768768,589.38,588.17,5.99703774]
[1741488072706,0.31209356,589.37,588.17,5.99703774]
[1741488074705,0.31209356,589.36,588.17,5.99703774]
[1741488074905,0.31209356,589.35,588.17,5.99703774]
[1741488075105,0.31209356,589.34,588.17,5.99703774]
[1741488075301,0.31209356,589.33,588.17,5.99703774]
[1741488075506,0.29559537,589.33,588.17,5.99703774]
[1741488075706,0.31209356,589.32,588.17,5.99703774]
[1741488076106,0.31209777,589.31,588.17,5.99703774]
[1741488076306,0.31209777,589.3,588.17,5.99703774]
[1741488076508,0.31209777,589.32,588.17,5.99703774]
[1741488076708,0.31209777,589.31,588.17,5.99703774]
[1741488076907,0.31209777,589.3,588.17,5.99703774]
[1741488077107,0.31209777,589.29,588.17,5.99703774]
[1741488077307,0.31209777,589.28,588.17,5.99703774]
[1741488077508,0.31209777,589.41,588.17,5.99703774]
[1741488077704,0.31209777,589.4,588.17,5.99703774]
[1741488077904,0.31210031,589.39,588.17,5.99703774]
[1741488078102,0.31210031,589.4,588.17,5.99703774]
[1741488078606,0.29559788,589.38,588.17,5.99703774]
[1741488078806,0.3120988,589.37,588.17,5.99703774]
[1741488080609,0.3120988,589.36,588.17,5.99703774]
[1741488080808,0.3120988,589.38,588.17,5.99703774]
[1741488081008,0.29560793,589.36,588.17,5.99703774]
[1741488086316,0.3120741,589.35,588.17,5.99703774]
[1741488086711,0.3120741,589.67,588.17,5.99703774]
[1741488086911,0.3120741,589.66,588.17,5.99703774]
[1741488087118,0.31207536,589.65,588.17,5.99703774]
[1741488087312,0.31207536,589.67,588.17,5.99703774]
[1741488087617,0.29554642,589.64,588.17,5.99703774]
[1741488087916,0.31207536,589.63,588.17,5.99703774]
[1741488088112,1.2617338,589.58,588.17,5.99703774]
[1741488088316,0.31207536,589.57,588.17,5.99703774]
[1741488089816,0.29555897,589.56,588.17,5.99703774]
[1741488090118,1.2617338,589.49,588.17,5.99703774]
[1741488093314,0.29555897,589.56,588.17,5.99703774]
[1741488093517,0.31212065,589.55,588.17,5.99703774]
[1741488095718,0.31209497,589.54,588.17,5.99703774]
[1741488095919,0.31209497,589.53,588.17,5.99703774]
[1741488096112,0.339167,589.68,588.17,5.99703774]
[1741488096113,0.31209497,589.52,588.17,5.99703774]
[1741488096312,0.339167,589.68,588.17,5.99703774]
[1741488096519,0.29555646,589.51,588.17,5.99703774]
[1741488096819,0.339167,589.68,588.17,5.99703774]
[1741488096820,0.31209313,589.5,588.17,5.99703774]
[1741488097016,0.31209313,589.67,588.17,5.99703774]
[1741488097217,0.31209313,589.66,588.17,5.99703774]
[1741488097419,0.31209313,589.67,588.17,5.99703774]
[1741488097719,0.29555646,589.65,588.17,5.99703774]
[1741488097918,0.31209313,589.64,588.17,5.99703774]
[1741488098124,0.31210599,589.63,588.17,5.99703774]
[1741488098421,0.31210599,589.62,588.17,5.99703774]
[1741488098620,0.31210599,589.61,588.17,5.99703774]